bitfinex/quotes_SOLUSD_20250924
["timestamp","ask_amount","ask_price","bid_price","bid_amount"]
[1758725064832,2.14889287,214.23,214.2,36.74]
[1758725065029,0.72,214.24,214.2,36.74]
[1758725065232,0.72,214.26,214.2,36.74]
[1758725065428,2.14889287,214.23,214.2,36.74]
[1758725065634,2.14889287,214.24,214.2,37.41]
[1758725065929,4.66679111,214.28,214.21,0.67]
[1758725066129,2.14889287,214.25,214.21,0.67]
[1758725066645,37.35928541,214.33,214.21,0.67]
[1758725066646,2.14889287,214.32,214.24,2.14889287]
[1758725066857,2.14889287,214.29,214.25,36.74]
[1758725067238,2.14889287,214.29,214.25,37.41]
[1758725067438,2.14889287,214.29,214.25,36.74]
[1758725067865,2.14889287,214.28,214.25,37.41]
[1758725068059,2.14889287,214.28,214.25,36.74]
[1758725068255,26.0,214.33,214.26,0.67]
[1758725068539,2.14889287,214.3,214.26,0.67]
[1758725068737,2.14889287,214.31,214.27,0.67]
[1758725068942,2.14889287,214.3,214.27,0.67]
[1758725069140,30.66570254,214.33,214.27,0.67]
[1758725069340,2.14889287,214.31,214.27,0.67]
[1758725069655,30.66570254,214.33,214.25,36.74]
[1758725069964,4.66602791,214.32,214.27,0.67]
[1758725070268,2.14889287,214.3,214.27,0.67]
[1758725070946,26.72,214.34,214.27,0.67]
[1758725070947,2.14889287,214.31,214.27,0.67]
[1758725071147,2.14889287,214.31,214.27,5.33699849]
[1758725071364,2.14889287,214.33,214.28,0.67]
[1758725071666,26.0,214.35,214.27,4.66699849]
[1758725071667,2.14889287,214.34,214.29,0.67]
[1758725071867,2.14889287,214.34,214.27,6.81589136]
[1758725071868,2.14889287,214.34,214.3,0.67]
[1758725072047,2.14889287,214.33,214.27,6.81589136]
[1758725072252,2.14889287,214.33,214.27,5.33699849]
[1758725072448,50.76622904,214.42,214.27,5.33699849]
[1758725072449,11.66025359,214.41,214.28,14.26559401]
[1758725072673,2.14889287,214.35,214.29,39.55889287]
[1758725072973,26.72,214.38,214.29,39.55889287]
[1758725073164,0.72,214.38,214.3,0.67]
[1758725073343,16.32462686,214.4,214.3,2.81889287]
[1758725073539,2.14889287,214.38,214.31,2.81889287]
[1758725073858,2.14889287,214.37,214.32,0.67]
[1758725074054,6.81388024,214.37,214.32,0.67]
[1758725074257,2.14889287,214.36,214.3,13.59559401]
[1758725074652,2.14889287,214.36,214.31,0.67]
[1758725074975,2.14889287,214.37,214.32,0.67]
[1758725075672,2.14889287,214.37,214.3,2.14889287]
[1758725075673,2.14889287,214.36,214.3,0.67]
[1758725075848,0.72,214.37,214.3,0.67]
[1758725076171,6.81375924,214.37,214.31,36.74]
[1758725076753,4.66486637,214.37,214.31,41.40601105]
[1758725077073,6.81361322,214.38,214.32,0.67]
[1758725077446,4.66440755,214.39,214.34,2.14889287]
[1758725077671,4.66440755,214.39,214.31,41.40604226]
[1758725077672,4.66419863,214.4,214.35,2.81889287]
[1758725077889,4.66419863,214.4,214.36,0.67]
[1758725078372,26.0,214.41,214.36,0.67]
[1758725078579,2.14889287,214.42,214.37,0.67]
[1758725078755,4.66375702,214.42,214.38,0.67]
[1758725079069,4.66375702,214.42,214.35,4.66525987]
[1758725079070,4.6635502,214.43,214.37,2.14889287]
[1758725079273,0.72,214.46,214.39,2.81889287]
[1758725079463,4.66265678,214.47,214.41,2.14889287]
[1758725079951,4.66265678,214.47,214.4,2.81889287]
[1758725080351,26.0,214.46,214.4,2.81889287]
[1758725080573,26.0,214.46,214.4,7.4830257]
[1758725080760,6.91135696,214.48,214.4,7.4830257]
[1758725081072,6.91135696,214.48,214.41,0.67]
[1758725081369,6.91135696,214.48,214.41,2.81889287]
[1758725082059,4.76246409,214.48,214.42,2.14889287]
[1758725082475,4.76246409,214.48,214.43,2.14889287]
[1758725082675,0.1,214.48,214.44,0.67]
[1758725083066,0.1,214.48,214.45,0.67]
[1758725083592,0.1,214.48,214.46,0.67]
[1758725083966,0.1,214.48,214.44,2.81889287]
[1758725084171,0.1,214.48,214.45,0.67]
[1758725084786,4.76251429,214.48,214.44,2.14889287]
[1758725084989,5.48251429,214.48,214.43,2.14889287]
[1758725086169,4.76251429,214.48,214.43,2.14889287]
[1758725086492,4.76251429,214.48,214.41,51.39587112]
[1758725086493,0.72,214.47,214.42,2.14889287]
[1758725086693,4.76251429,214.48,214.42,0.67]
[1758725088298,4.76251429,214.48,214.42,2.81889287]
[1758725089299,5.48251429,214.48,214.42,2.14889287]
[1758725089595,5.48251429,214.48,214.41,2.14889287]
[1758725089786,7.63140716,214.48,214.41,2.14889287]
[1758725090498,5.48251429,214.48,214.41,5.33388552]
[1758725090710,0.1,214.48,214.43,13.59559401]
[1758725091006,4.7624538,214.48,214.43,15.74448688]
[1758725091378,4.7624538,214.48,214.44,0.71]
[1758725091779,0.1,214.48,214.45,0.71]
[1758725092584,4.76246983,214.48,214.45,0.71]
[1758725092788,0.1,214.48,214.45,0.71]
[1758725092999,0.1,214.48,214.43,6.81234184]
[1758725093000,0.1,214.48,214.46,0.71]
[1758725093594,0.1,214.48,214.47,0.71]
[1758725094185,0.1,214.48,214.47,2.85889287]
[1758725094895,0.1,214.48,214.47,0.71]
[1758725096099,0.1,214.48,214.45,13.59559401]
[1758725096307,0.1,214.48,214.46,0.71]
[1758725097207,0.1,214.48,214.47,0.71]
[1758725098204,0.1,214.48,214.46,3.35166353]
[1758725098503,0.1,214.48,214.45,58.33030038]
[1758725098696,0.1,214.48,214.46,0.71]
[1758725100103,0.1,214.48,214.44,4.66327133]
[1758725100104,5.43245252,214.48,214.44,36.7]
[1758725100417,5.43245252,214.48,214.32,14.03]
[1758725100418,0.67,214.47,214.4,0.7]
[1758725100602,3.35166353,214.43,214.39,34.7]
[1758725100805,16.41855099,214.48,214.39,34.7]
[1758725100806,4.66374405,214.42,214.39,34.7]
[1758725100992,4.66374405,214.42,214.39,35.4]
[1758725101194,4.66354515,214.43,214.39,35.4]
[1758725101608,4.02166353,214.45,214.4,0.7]
[1758725101821,0.1,214.48,214.41,4.05166353]
[1758725102113,3.35166353,214.45,214.39,38.05166353]
[1758725102309,3.35166353,214.43,214.38,0.7]
[1758725102512,3.35166353,214.43,214.39,36.7]
[1758725102705,3.35166353,214.4,214.34,0.7]
[1758725102886,3.35166353,214.4,214.34,37.4]
[1758725103096,3.35166353,214.41,214.35,3.35166353]
[1758725103308,3.35166353,214.43,214.37,3.35166353]
[1758725103485,3.35166353,214.43,214.38,37.4]
[1758725103691,8.01497261,214.44,214.39,0.7]
[1758725103886,8.01497261,214.44,214.4,0.7]
[1758725104091,3.35166353,214.43,214.4,0.7]
[1758725104398,8.01476013,214.45,214.41,0.7]
[1758725104711,8.01499537,214.44,214.39,0.7]
[1758725104899,4.66269503,214.47,214.4,4.05166353]
[1758725105093,8.11411749,214.48,214.41,4.05166353]
[1758725105302,3.35166353,214.47,214.42,37.4]
[1758725105608,0.67,214.47,214.42,36.7]
[1758725105809,4.02166353,214.46,214.35,26.0]
[1758725106004,3.35166353,214.36,214.3,37.4]
[1758725106305,3.35166353,214.36,214.3,40.05166353]
[1758725106517,3.35166353,214.36,214.31,0.7]
[1758725106705,3.35166353,214.36,214.32,0.7]
[1758725106913,3.35166353,214.36,214.33,0.7]
[1758725106914,8.01692165,214.36,214.33,0.7]
[1758725107086,8.01692165,214.36,214.31,0.7]
[1758725107285,8.01692165,214.36,214.3,50.67521371]
[1758725107286,3.35166353,214.35,214.3,50.67521371]
[1758725107491,3.35166353,214.35,214.31,0.7]
[1758725108021,4.66525812,214.36,214.31,0.7]
[1758725108217,3.35166353,214.35,214.32,0.7]
[1758725108419,3.35166353,214.37,214.3,4.66632425]
[1758725108624,3.35166353,214.35,214.31,37.46]
[1758725108800,8.01710232,214.35,214.31,37.46]
[1758725109004,3.35166353,214.36,214.32,0.7]
[1758725109182,3.35166353,214.36,214.33,0.7]
[1758725109586,3.35166353,214.35,214.31,36.76]
[1758725109815,3.35166353,214.35,214.31,37.46]
[1758725109987,3.35166353,214.36,214.32,0.7]
[1758725110186,3.35166353,214.36,214.33,0.7]
[1758725110817,8.0167487,214.36,214.33,0.7]
[1758725111019,8.0167487,214.36,214.31,37.46]
[1758725111184,8.0167487,214.36,214.32,0.7]
[1758725111387,8.0167487,214.36,214.31,36.76]
[1758725111388,8.01679313,214.36,214.31,36.76]
[1758725111588,8.01672163,214.36,214.32,0.7]
[1758725113739,3.35166353,214.35,214.31,36.76]
[1758725113918,5.3350581,214.36,214.31,36.76]
[1758725114117,8.68672163,214.36,214.31,37.46]
[1758725114342,8.01672163,214.36,214.31,37.46]
[1758725114541,3.35166353,214.37,214.32,0.7]
[1758725114834,3.35166353,214.37,214.28,13.71857634]
[1758725114835,4.02166353,214.36,214.3,3.35166353]
[1758725115012,4.66526708,214.35,214.3,36.72]
[1758725115216,4.66526708,214.35,214.27,26.0]
[1758725115435,3.35166353,214.29,214.21,0.7]
[1758725115622,4.02166353,214.28,214.21,0.7]
[1758725115924,4.02166353,214.28,214.22,3.35166353]
[1758725116245,4.02166353,214.28,214.19,41.58874317]
[1758725116455,26.0,214.32,214.19,0.2]
[1758725116456,3.35166353,214.26,214.19,0.2]
[1758725116637,4.02166353,214.25,214.19,0.2]
[1758725116939,4.66766243,214.24,214.19,0.2]
[1758725117156,4.6672744,214.26,214.2,3.35166353]
[1758725117339,26.0,214.3,214.19,0.9]
[1758725117340,3.35166353,214.25,214.19,0.9]
[1758725117523,4.66727565,214.26,214.19,4.25166353]
[1758725117722,3.35166353,214.25,214.19,4.25166353]
[1758725118332,4.66727565,214.26,214.19,8.92040083]
[1758725118530,3.35166353,214.25,214.19,4.25166353]
[1758725118713,3.35166353,214.24,214.19,0.9]
[1758725119150,5.33788031,214.23,214.19,0.2]
[1758725119363,3.35166353,214.21,214.19,0.2]
[1758725119577,3.35166353,214.2,214.19,0.2]
[1758725119734,4.02166353,214.2,214.19,0.2]
[1758725121038,8.69019761,214.2,214.19,0.2]
[1758725121543,0.67,214.2,214.19,0.2]
[1758725121745,4.66809821,214.22,214.19,0.2]
[1758725121948,3.35166353,214.2,214.19,0.2]
[1758725122144,3.35166353,214.21,214.19,0.2]
[1758725122334,3.35166353,214.23,214.19,0.2]
[1758725122530,3.35166353,214.25,214.2,0.66]
[1758725122740,12.3867919,214.29,214.21,0.66]
[1758725122741,4.66679111,214.28,214.21,0.66]
[1758725122939,3.35166353,214.27,214.21,0.66]
[1758725123143,3.35166353,214.27,214.21,5.32812097]
[1758725123443,16.33148242,214.31,214.23,3.35166353]
[1758725123444,4.66613783,214.31,214.23,3.35166353]
[1758725123644,3.35166353,214.3,214.24,0.66]
[1758725123967,3.35166353,214.31,214.24,4.01166353]
[1758725124148,3.35166353,214.3,214.24,0.66]
[1758725124344,3.35166353,214.28,214.21,44.26371498]
[1758725124652,3.35166353,214.28,214.22,17.60725754]
[1758725125160,8.01845791,214.28,214.23,4.66788031]
[1758725125359,8.01845791,214.28,214.23,0.66]
[1758725125560,3.35166353,214.29,214.24,0.66]
[1758725125769,3.35166353,214.28,214.22,16.94725754]
[1758725126069,3.35166353,214.25,214.21,0.66]
[1758725126743,3.35166353,214.26,214.19,40.33166353]
[1758725126942,4.66656834,214.3,214.22,0.66]
[1758725127148,26.0,214.32,214.23,8.01954384]
[1758725127149,0.72,214.32,214.23,8.01954384]
[1758725127475,3.35166353,214.31,214.24,4.01166353]
[1758725127680,3.35166353,214.3,214.24,0.66]
[1758725128177,0.72,214.32,214.24,0.66]
[1758725128544,3.35166353,214.29,214.24,0.66]
[1758725128845,3.35166353,214.29,214.25,0.66]
[1758725129061,3.35166353,214.29,214.23,5.32788031]
[1758725129240,8.01828967,214.29,214.23,5.32788031]
[1758725129761,3.35166353,214.28,214.23,5.32778159]
[1758725129960,3.35166353,214.29,214.24,0.66]
[1758725130142,3.35166353,214.29,214.23,4.66778159]
[1758725130143,3.35166353,214.29,214.25,0.66]
[1758725130348,3.35166353,214.3,214.25,0.66]
[1758725130973,3.35166353,214.29,214.23,5.32778159]
[1758725131157,3.35166353,214.28,214.23,0.66]
[1758725131550,3.35166353,214.28,214.24,0.66]
[1758725132358,3.35166353,214.29,214.24,0.66]
[1758725132873,8.73824968,214.29,214.24,0.66]
[1758725133074,8.01824968,214.29,214.24,0.66]
[1758725133451,3.35166353,214.29,214.24,5.32759206]
[1758725134054,8.01826072,214.29,214.24,0.66]
[1758725135272,8.73826072,214.29,214.24,0.66]
[1758725135472,4.6661654,214.31,214.24,5.32766242]
[1758725135769,3.35166353,214.29,214.23,5.32787454]
[1758725135953,3.35166353,214.29,214.23,0.66]
[1758725136371,3.35166353,214.29,214.23,5.32776752]
[1758725136753,3.35166353,214.29,214.23,8.67943105]
[1758725136957,0.72,214.31,214.23,8.67943105]
[1758725137162,3.35166353,214.29,214.23,8.67943105]
[1758725137996,3.35166353,214.28,214.23,0.66]
[1758725138161,4.66613783,214.31,214.23,0.66]
[1758725138162,5.38613783,214.31,214.23,0.66]
[1758725138358,3.35166353,214.29,214.23,0.66]
[1758725138761,3.35166353,214.26,214.22,36.76]
[1758725139078,4.07166353,214.26,214.22,36.76]
[1758725139280,0.72,214.26,214.22,36.76]
[1758725139577,16.33148242,214.31,214.24,3.35166353]
[1758725139578,26.0,214.31,214.24,3.35166353]
[1758725139776,4.6662241,214.31,214.25,5.32744141]
[1758725139967,3.35166353,214.3,214.25,5.32744141]
[1758725140175,3.35166353,214.28,214.22,37.42]
[1758725140374,4.07166353,214.28,214.22,37.42]
[1758725140569,3.35166353,214.27,214.21,36.74]
[1758725140960,3.35166353,214.27,214.21,37.4]
[1758725141672,8.01885771,214.27,214.21,41.40828813]
[1758725141882,3.35166353,214.27,214.22,0.66]
[1758725142186,8.01847102,214.28,214.23,0.66]
[1758725142379,3.35166353,214.27,214.23,0.66]
[1758725142578,3.35166353,214.27,214.24,0.66]
[1758725143080,3.35166353,214.27,214.21,36.74]
[1758725143392,3.35166353,214.25,214.21,36.74]
[1758725143564,3.35166353,214.25,214.21,37.4]
[1758725143767,8.01889026,214.26,214.21,36.74]
[1758725143977,8.01889026,214.26,214.22,0.66]
[1758725144677,8.01889026,214.26,214.21,36.74]
[1758725144884,8.01889026,214.26,214.21,37.4]
[1758725145697,8.73889026,214.26,214.21,36.74]
[1758725145883,8.73889026,214.26,214.21,37.4]
[1758725146196,3.35166353,214.22,214.19,0.2]
[1758725146493,3.35166353,214.2,214.19,0.2]
[1758725147870,8.02019761,214.2,214.19,0.2]
[1758725149596,26.0,214.23,214.19,0.2]
[1758725149801,3.35166353,214.24,214.19,0.86]
[1758725149989,3.35166353,214.24,214.2,0.66]
[1758725150298,3.35166353,214.24,214.21,0.66]
[1758725150492,4.66726036,214.26,214.21,0.66]
[1758725150689,3.35166353,214.24,214.21,0.66]
[1758725151497,26.72,214.28,214.22,0.72]
[1758725151678,3.35166353,214.26,214.22,0.72]
[1758725151999,3.35166353,214.26,214.23,0.72]
[1758725152301,31.38700477,214.28,214.23,0.72]
[1758725152479,3.35166353,214.26,214.23,0.72]
[1758725153195,11.66498946,214.32,214.24,0.72]
[1758725153387,4.66570242,214.33,214.24,0.72]
[1758725153576,0.71,214.34,214.25,13.59559401]
[1758725153777,3.35166353,214.32,214.26,40.81166353]
[1758725154079,3.35166353,214.32,214.27,0.72]
[1758725154278,3.35166353,214.32,214.28,0.72]
[1758725154503,3.35166353,214.32,214.29,0.72]
[1758725155290,3.35166353,214.31,214.26,37.46]
[1758725155492,4.66594273,214.32,214.27,0.72]
[1758725155701,3.35166353,214.31,214.27,0.72]
[1758725156194,0.71,214.34,214.26,41.40712343]
[1758725156401,3.35166353,214.31,214.28,0.72]
[1758725156602,2.14892875,214.31,214.28,0.72]
[1758725157193,4.6658712,214.33,214.28,4.66678014]
[1758725157395,2.14892875,214.32,214.29,0.72]
[1758725158200,2.14892875,214.33,214.3,0.72]
[1758725159011,30.6652988,214.35,214.3,0.72]
[1758725159208,30.6652988,214.35,214.17,88.795715]
[1758725159209,2.14892875,214.31,214.24,0.72]
[1758725159413,2.14892875,214.28,214.24,0.72]
[1758725159617,2.14892875,214.28,214.25,0.72]
[1758725159999,2.14892875,214.28,214.22,15.74452276]
[1758725160200,2.14892875,214.27,214.22,0.71]
[1758725160401,2.14892875,214.27,214.23,0.71]
[1758725160900,0.71,214.3,214.24,0.71]
[1758725161103,2.14892875,214.27,214.24,0.71]
[1758725161621,5.37590047,214.33,214.25,0.71]
[1758725161814,2.14892875,214.3,214.25,0.71]
[1758725162120,2.14892875,214.3,214.24,28.14892875]
[1758725162121,2.14892875,214.3,214.24,26.0]
[1758725162295,2.14892875,214.3,214.25,0.71]
[1758725162499,4.66590047,214.33,214.26,0.71]
[1758725162844,4.66590047,214.33,214.19,0.2]
[1758725162845,2.14892875,214.27,214.19,0.91]
[1758725163133,26.0,214.3,214.19,0.2]
[1758725163134,6.81722202,214.22,214.19,0.2]
[1758725163636,0.14216157,214.29,214.19,0.2]
[1758725163812,2.14892875,214.25,214.19,5.57869774]
[1758725164133,2.14892875,214.27,214.2,2.85892875]
[1758725164296,26.0,214.31,214.22,2.14892875]
[1758725164500,0.71,214.36,214.28,2.14892875]
[1758725164712,2.14892875,214.35,214.28,2.14892875]
[1758725164912,0.71,214.34,214.27,0.71]
[1758725165131,2.85892875,214.34,214.27,7.52592825]
[1758725165427,2.14892875,214.36,214.29,2.14892875]
[1758725166406,2.14892875,214.36,214.3,0.71]
[1758725166915,5.37483183,214.37,214.3,0.71]
[1758725167114,6.8143833,214.35,214.3,0.71]
[1758725167431,2.14892875,214.37,214.31,0.71]
[1758725167614,6.8137891,214.37,214.31,0.71]
[1758725168699,2.14892875,214.36,214.31,0.71]
[1758725168904,2.14892875,214.36,214.31,5.37610272]
[1758725169120,6.81398978,214.36,214.31,5.37610272]
[1758725169324,6.81398978,214.36,214.31,0.71]
[1758725169511,4.66506103,214.36,214.32,0.71]
[1758725169735,6.81398978,214.36,214.32,0.71]
[1758725169921,6.81398978,214.36,214.3,4.66635208]
[1758725170113,6.81398978,214.36,214.3,5.37635208]
[1758725170734,0.71,214.38,214.3,5.37635208]
[1758725170735,2.14892875,214.37,214.3,7.52528083]
[1758725170939,0.71,214.41,214.34,2.14892875]
[1758725171114,2.14892875,214.41,214.35,0.71]
[1758725171429,0.71,214.43,214.35,0.71]
[1758725171616,2.14892875,214.41,214.35,0.71]
[1758725171809,0.71,214.42,214.35,0.71]
[1758725171810,2.14892875,214.4,214.35,0.71]
[1758725172006,2.85892875,214.4,214.35,0.71]
[1758725172630,2.14892875,214.39,214.35,0.71]
[1758725173230,6.81333927,214.39,214.35,0.71]
[1758725173728,2.85892875,214.4,214.35,0.71]
[1758725173934,7.52313721,214.4,214.35,0.71]
[1758725174304,5.37420846,214.4,214.35,0.71]
[1758725174500,7.52313721,214.4,214.35,0.71]
[1758725174705,4.66461423,214.38,214.33,37.47]
[1758725174920,0.71,214.37,214.31,0.71]
[1758725175226,4.66438386,214.4,214.33,2.14892875]
[1758725175435,2.14892875,214.39,214.34,0.71]
[1758725175743,2.14892875,214.39,214.32,38.88892875]
[1758725175744,2.14892875,214.39,214.35,0.71]
[1758725176037,6.81331261,214.4,214.35,0.71]
[1758725176222,4.66438386,214.4,214.35,0.71]
[1758725176400,4.66397862,214.41,214.33,13.59559401]
[1758725176600,6.81290737,214.41,214.36,0.71]
[1758725176836,6.81290737,214.41,214.37,0.71]
[1758725177127,2.14892875,214.44,214.38,0.71]
[1758725177336,2.14892875,214.45,214.38,2.85892875]
[1758725177638,2.14892875,214.44,214.39,0.71]
[1758725178001,11.6566448,214.47,214.39,2.85892875]
[1758725178328,11.6566448,214.47,214.41,4.66396156]
[1758725178329,6.81175761,214.47,214.41,4.66396156]
[1758725178528,6.81175761,214.47,214.41,5.37396156]
[1758725179231,6.81175761,214.47,214.38,2.85892875]
[1758725179232,2.14892875,214.45,214.38,2.85892875]
[1758725179433,2.14892875,214.42,214.36,14.30559401]
[1758725179638,2.14892875,214.42,214.37,36.72]
[1758725179812,2.14892875,214.42,214.37,37.43]
[1758725180132,2.14892875,214.42,214.38,0.71]
[1758725180932,4.66377679,214.42,214.38,0.71]
[1758725181634,6.81270554,214.42,214.38,0.71]
[1758725181821,0.66,214.41,214.35,28.14892875]
[1758725182143,2.80892875,214.41,214.35,26.0]
[1758725182440,2.14892875,214.43,214.36,2.80892875]
[1758725182606,0.66,214.44,214.37,2.80892875]
[1758725182607,2.14892875,214.44,214.37,2.80892875]
[1758725182807,2.14892875,214.44,214.38,0.66]
[1758725183126,2.14892875,214.44,214.35,62.72]
[1758725183127,2.14892875,214.43,214.36,0.66]
[1758725183322,0.66,214.44,214.36,39.54892875]
[1758725183523,2.14892875,214.43,214.37,0.66]
[1758725186146,2.14892875,214.42,214.38,36.72]
[1758725186443,6.81279634,214.42,214.38,37.38]
[1758725187243,4.66386759,214.42,214.38,36.72]
[1758725187449,2.80892875,214.41,214.36,0.66]
[1758725187621,2.14892875,214.4,214.36,37.38]
[1758725188144,6.81279634,214.42,214.37,0.66]
[1758725188331,2.14892875,214.43,214.38,0.66]
[1758725188534,0.66,214.44,214.36,36.72]
[1758725188535,2.14892875,214.44,214.39,0.66]
[1758725188723,2.80892875,214.44,214.39,0.66]
[1758725188913,2.14892875,214.45,214.4,0.66]
[1758725189314,2.14892875,214.44,214.4,0.66]
[1758725189923,16.98005967,214.46,214.4,0.66]
[1758725190140,2.14892875,214.44,214.4,0.66]
[1758725190349,2.14892875,214.44,214.38,5.32450844]
[1758725190837,0.66,214.45,214.38,0.66]
[1758725190838,2.14892875,214.43,214.38,0.66]
[1758725191054,2.14892875,214.43,214.39,0.66]
[1758725191243,2.14892875,214.43,214.37,26.66]
[1758725191616,2.14892875,214.43,214.38,0.66]
[1758725191851,4.66374405,214.42,214.39,0.66]
[1758725192159,0.66,214.41,214.36,26.66]
[1758725192325,11.65790706,214.45,214.36,37.38]
[1758725192525,2.14892875,214.43,214.37,0.66]
[1758725193034,2.14892875,214.42,214.37,0.66]
[1758725193650,2.80892875,214.42,214.37,0.66]
[1758725193825,4.66330908,214.44,214.38,0.66]
[1758725194635,2.14892875,214.45,214.38,0.66]
[1758725194836,6.81159887,214.47,214.39,41.74452276]
[1758725195060,6.81159887,214.47,214.4,0.66]
[1758725195228,6.81159887,214.47,214.41,36.72]
[1758725195431,6.91139919,214.48,214.42,0.66]
[1758725195629,2.24892875,214.48,214.42,0.66]
[1758725195827,0.1,214.48,214.45,16.32082069]
[1758725196057,0.1,214.48,214.46,37.38]
[1758725196664,0.1,214.48,214.47,0.66]
[1758725197966,0.1,214.48,214.47,5.32265678]
[1758725199375,0.1,214.48,214.46,36.72]
[1758725199538,0.1,214.48,214.47,0.66]
[1758725199743,0.1,214.48,214.47,16.40452276]
[1758725199953,0.1,214.48,214.47,21.06717954]
[1758725201948,0.1,214.48,214.47,47.06717954]
[1758725202148,0.1,214.48,214.47,45.06041236]
[1758725202339,0.1,214.48,214.47,21.20934111]
[1758725202541,9.32173353,214.58,214.55,26.0]
[1758725202773,9.32173353,214.58,214.57,2.14892875]
[1758725203136,9.32173353,214.58,214.55,26.0]
[1758725203340,9.32173353,214.58,214.56,36.7]
[1758725203739,9.32173353,214.58,214.55,26.0]
[1758725203937,9.32173353,214.58,214.56,36.7]
[1758725204143,9.32173353,214.58,214.55,26.0]
[1758725204144,0.66,214.57,214.54,36.7]
[1758725204361,9.32173353,214.58,214.54,37.36]
[1758725204759,9.32173353,214.58,214.54,36.7]
[1758725204952,0.66,214.57,214.51,0.66]
[1758725205265,0.66,214.57,214.52,36.72]
[1758725205453,25.63269061,214.58,214.52,36.7]
[1758725205654,2.80892875,214.56,214.52,36.7]
[1758725205851,14.6420242,214.58,214.52,36.7]
[1758725206161,7.46962519,214.57,214.52,36.7]
[1758725206360,5.32069644,214.57,214.52,36.7]
[1758725206660,9.32173353,214.58,214.54,2.14892875]
[1758725206960,9.32173353,214.58,214.55,2.80892875]
[1758725207167,9.32173353,214.58,214.56,39.52892875]
[1758725207364,9.32173353,214.58,214.57,39.52892875]
[1758725207569,9.32173353,214.58,214.57,37.38]
[1758725207769,9.32173353,214.58,214.52,16.31547431]
[1758725207959,9.32173353,214.58,214.55,26.0]
[1758725208161,0.66,214.57,214.55,36.74]
[1758725208658,9.32173353,214.58,214.57,39.59559401]
[1758725208858,9.32173353,214.58,214.57,40.25559401]
[1758725209062,9.32173353,214.58,214.57,63.46]
[1758725209248,9.32173353,214.58,214.57,39.60892875]
[1758725209849,9.32173353,214.58,214.54,0.66]
[1758725210074,9.32173353,214.58,214.55,36.82]
[1758725210276,9.32173353,214.58,214.54,2.14892875]
[1758725210571,9.32173353,214.58,214.55,36.82]
[1758725210753,9.32173353,214.58,214.55,39.67892875]
[1758725211171,9.32173353,214.58,214.55,26.0]
[1758725211372,9.32173353,214.58,214.56,36.82]
[1758725211875,9.32173353,214.58,214.56,37.53]
[1758725212059,9.32173353,214.58,214.56,36.82]
[1758725212255,9.32173353,214.58,214.57,36.82]
[1758725212458,9.32173353,214.58,214.57,39.67892875]
[1758725214159,9.32173353,214.58,214.57,42.19048375]
[1758725214359,9.32173353,214.58,214.57,44.3394125]
[1758725214767,9.32173353,214.58,214.57,5.37048375]
[1758725214964,9.32173353,214.58,214.57,42.17048375]
[1758725215171,9.32173353,214.58,214.57,57.91500651]
[1758725215395,9.32173353,214.58,214.57,58.05716808]
[1758725217358,0.1,214.64,214.61,13.59559401]
[1758725217559,0.1,214.64,214.63,2.14892875]
[1758725218167,0.1,214.64,214.63,6.80810966]
[1758725218370,0.1,214.64,214.63,4.65918091]
[1758725218680,0.1,214.64,214.63,8.00477985]
[1758725219074,0.1,214.64,214.63,5.36918091]
[1758725219285,0.1,214.64,214.63,8.71477985]
[1758725219586,0.1,214.64,214.63,3.34559894]
[1758725220155,0.1,214.64,214.62,36.8]
[1758725220361,0.1,214.64,214.62,42.1293685]
[1758725220663,0.1,214.64,214.62,40.14559894]
[1758725221057,0.1,214.64,214.61,8.00521083]
[1758725221258,0.1,214.64,214.63,16.94119295]
[1758725221881,0.1,214.64,214.63,17.61119295]
[1758725222266,0.1,214.64,214.63,22.27037386]